{"text_format":"1","workbook":"xlsx","n_sheets":4,"sheets":["AnexoN°01","AnexoN°02","BD CONVOCATORIA 2024","REF_TBL"],"not_rendered":{"charts":0,"images":1,"macros":1,"external_links":0,"defined_names":0,"comments":0,"pivot_tables":0},"unopened":[],"bounds":{"document_bytes":16777216,"sheet_cells":100000,"rows_first":2000,"rows_last":500,"rows_between":2000,"halvings":0,"cell_chars":16384,"cell_head_chars":4096},"cells_cut":0,"cells_raw":0,"read":"whole","date_system":"1900"}

{"sheet":"AnexoN°01","index":0,"n_rows":41,"n_cols":4,"rows_kept":41,"cut":false,"hidden":false,"merged":[[6,0,6,3],[5,0,5,3],[0,0,0,3],[1,0,1,3],[2,0,2,2],[3,0,3,3],[39,2,39,3],[40,2,40,3],[7,0,7,2],[9,1,9,2],[36,2,38,3],[29,2,29,3],[30,2,30,3],[31,2,31,3],[32,2,32,3],[33,2,33,3],[25,0,25,3],[28,2,28,3]]}
["Anexo N° 01"]
["SOLICITUD DE INSCRIPCION COMO POSTULANTE EN EL CONCURSO PUBLICO DE"]
["MERITOS - SUPLENCIA TEMPORAL PARA ."]
["DEL SATCH"]
[]
["ENTIDAD: SERVICIO DE ADMINISTRACION TRIBUTARIA DE CHICLAYO - SATCH"]
["SEÑOR PRESIDENTE DE LA COMISION DEL CONCURSO PARA LA CONTRATACIÓN DE"]
[null,null,null,"  DEL SATCH"]
[]
[null,"1.- DATOS DEL POSTULANTE"]
[null,null,"ITEMS","DATOS"]
[null,null,"APELLIDO PATERNO"]
[null,null,"APELLIDO MATERNO"]
[null,null,"NOMBRE (S)"]
[null,null,"N° DNI"]
[null,null,"N° RUC"]
[null,null,"FECHA DE NACIMIENTO"]
[null,null,"DIRECCIÓN (URB.-AV/CALL.N°/DPTO)"]
[null,null,"CIUDAD"]
[null,null,"TELEFONO (S)"]
[null,null,"CORREO ELECTRONICO"]
[null,null,"COLEGIO PROFESIONAL"]
[null,null,"N° DE COLEGIATURA"]
[null,null,"CERTIFICADO DE HABILITACION VIGENTE (FECHA)"]
[]
["Conste por la presente Declaración Jurada, que la información que se consigna es verídica y se ajusta"]
["a la verdad"]
[]
[null,"1.","Conocer, aceptar y someterme libre y voluntariamente a las precisiones indicadas en las Bases"]
[null,null,"Administrativas y Especificaciones Técnicas, condiciones y procedimientos del proceso de selección."]
[null,"2.","Ser el responsable de la veracidad de los documentos y de los datos consignados."]
[null,"3.","No haber sido cesado temporalmente o destituido por actos dolorosos."]
[null,"4.","Tener hábiles mis derechos civiles y laborales, así como no tener incompatibilidad alguna para"]
[null,null,"contratar con el estado. "]
[]
[]
[]
[]
[]
[null,null,"Apellidos y nombre (s)"]
[null,null,"DNI"]

{"sheet":"AnexoN°02","index":1,"n_rows":68,"n_cols":7,"rows_kept":68,"cut":false,"hidden":false,"merged":[[67,3,67,4],[49,0,49,2],[1,0,1,4],[3,0,3,2],[2,1,2,3],[39,0,39,3],[24,1,24,6],[11,0,11,3],[12,1,12,6],[40,1,40,6],[50,1,50,6],[62,3,65,4],[62,5,62,6],[63,5,63,6],[0,0,0,6],[59,0,59,6],[66,3,66,4]]}
["Anexo N° 02"]
["CONTENIDO DE LA HOJA DE VIDA"]
[]
["1. FORMACIÓN"]
[]
[null,null,"TITULO O GRADO","ESPECIALIDAD","FECHA DE EXPEDICION DEL GRADO / TITULO (MES/AÑO)","UNIVERSIDAD","CIUDAD/PAIS"]
[null,null,"DOCTORADO"]
[null,null,"POSTGRADO\nDIPLOMADOS EN AREAS REFERIDAS A LA CONVOCATORIA"]
[null,null,"BACHILLERATO O TITULO"]
[null,null,"ESTUDIOS"]
[]
["2. CAPACITACIÓN"]
[null,"Constituida por curso de capacitación y otras actividades de perfeccionamiento realizados que tengan relación con el cargo a postular"]
[]
[null,null,"NOMBRE DEL CURSO","N° HORAS","FECHA DE EXPEDICION (MES/AÑO)","INSTITUCION QUE LO REALIZO","CIUDAD/PAIS"]
[]
[]
[]
[]
[]
[null,"Público"]
[null,"Privado"]
[]
["3. EXPERIENCIA LABORAL"]
[null,"Cargos desempeñados, que tengan relación con el área de desempeño, por un periodo no menor a un mes, asigandos con resolución o certificación correspondiente y en forma cronológica"]
[]
["N°","Público/ Privado","Nombre de la Empresa o Entidad","Cargo desempeñado","Fecha de Inicio (Mes/Año)","Fecha de Término (Mes/Año)","Descripción del Trabajo"]
[]
[]
[]
[]
[]
[]
["N°","Público/ Privado","Nombre de la Empresa o Entidad","Cargo desempeñado","Fecha de Inicio (Mes/Año)","Fecha de Término (Mes/Año)","Descripción del Trabajo"]
[]
[]
[]
[]
[]
["3. REFERENCIAS PERSONALES"]
[null,"De preferencia detallar las referencias personales correspondientes a las dos últimas entidades o empresas donde estuvo trabajando."]
[]
[null,null,"N°","Nombre de la Entidad","Cargo de la Referencia","Nombre de la persona","Teléfonos Actualizados"]
[]
[]
[]
[]
[]
[]
["4. ADICIONAL"]
[null,"Incluir estudios y/o conocimientos de computación y otros adicionales que sean importantes de resaltar de acuerdo a los requisitos mínimos de los términos de referencia."]
[]
[null,null,"TITULO","ESPECIALIDAD","FECHA DE EXPEDICION DEL TITULO (MES/AÑO)","UNIVERSIDAD O INSTITUCION","CIUDAD/PAIS"]
[]
[]
[]
[]
[]
[]
["Declaro que la información proporcionada es veraz y exacta, y, en caso necesario autorizo su investigacción. De ser seleccionado y de verificarse que la información es falsa acepto expresamente que la entidad proceda a mi retiro automático, sin perjuicio de aplicarse las sanciones legales que me corresponden."]
[]
[]
[null,null,null,null,null,{"$f":"AnexoN°01!D36","v":"00:00:00"}]
[null,null,null,null,null,{"$f":"_xlfn.IFNA(CONCATENATE(\"Chiclayo \",IF(ISBLANK(VLOOKUP($G$2,'BD CONVOCATORIA 2024'!$A$6:$O$6,15,FALSE)),\"  \",TEXT(VLOOKUP($G$2,'BD CONVOCATORIA 2024'!$A$6:$O$6,15,FALSE),\"dd\")),\" de \",IF(ISBLANK(VLOOKUP($G$2,'BD CONVOCATORIA 2024'!$A$6:$O$6,15,FALSE)),\"          \",TEXT(VLOOKUP($G$2,'BD CONVOCATORIA 2024'!$A$6:$O$6,15,FALSE),\"mmmm\")),\" del \",IF(ISBLANK(VLOOKUP($G$2,'BD CONVOCATORIA 2024'!$A$6:$O$6,15,FALSE)),\"           \",YEAR(VLOOKUP($G$2,'BD CONVOCATORIA 2024'!$A$6:$O$6,15,FALSE)))),\"\")","v":""}]
[]
[]
[null,null,null,"Nombres y Apellidos"]
[null,null,null,"DNI"]

{"sheet":"BD CONVOCATORIA 2024","index":2,"n_rows":6,"n_cols":206,"rows_kept":6,"cut":false,"hidden":true,"merged":[[3,200,3,205],[3,0,3,14],[3,15,3,30],[3,175,3,199],[3,67,3,149],[3,150,3,174]]}
[]
[]
[1,2,3,4,5,6,7,8,9,10,11,12,13,14,15,16,17,18,19,20,21,22,23,24,25,26,27,28,29,30,31,32,33,34,35,36,37,38,39,40,41,42,43,44,45,46,47,48,49,50,51,52,53,54,55,56,57,58,59,60,61,62,63,64,65,66,67,68,69,70,71,72,73,74,75,76,77,78,79,80,81,82,83,84,85,86,87,88,89,90,91,92,93,94,95,96,97,98,99,100,101,102,103,104,105,106,107,108,109,110,111,112,113,114,115,116,117,118,119,120,121,122,123,124,125,126,127,128,129,130,131,132,133,134,135,136,137,138,139,140,141,142,143,144,145,146,147,148,149,150,151,152,153,154,155,156,157,158,159,160,161,162,163,164,165,166,167,168,169,170,171,172,173,174,175,176,177,178,179,180,181,182,183,184,185,186,187,188,189,190,191,192,193,194,195,196,197,198,199,200]
["ANEXO N° 01 / 1.- DATOS DEL POSTULANTE",null,null,null,null,null,null,null,null,null,null,null,null,null,null,"ANEXO N° 02 / 1. FORMACION",null,null,null,null,null,null,null,null,null,null,null,null,null,null,null,null,"ANEXO N° 02 / 2. CAPACITACION",null,null,null,null,null,null,null,null,null,null,null,null,null,null,null,null,null,null,null,null,null,null,null,null,null,null,null,null,null,null,null,null,null,null,"ANEXO N° 02 / 3. EXPERIENCIA LABORAL",null,null,null,null,null,null,null,null,null,null,null,null,null,null,null,null,null,null,null,null,null,null,null,null,null,null,null,null,null,null,null,null,null,null,null,null,null,null,null,null,null,null,null,null,null,null,null,null,null,null,null,null,null,null,null,null,null,null,null,null,null,null,null,null,null,null,null,null,null,null,null,null,null,null,null,null,null,null,null,null,null,null,"ANEXO N° 02 / 4. REFERENCIAS PERSONALES",null,null,null,null,null,null,null,null,null,null,null,null,null,null,null,null,null,null,null,null,null,null,null,null,"ANEXO N° 02 / 5. ADICIONAL",null,null,null,null,null,null,null,null,null,null,null,null,null,null,null,null,null,null,null,null,null,null,null,null,"PLAZAS"]
["N° DNI","APELLIDO PATERNO","APELLIDO MATERNO","NOMBRE (S)","N° RUC","FECHA DE NACIMIENTO","EDAD","DIRECCION (URB-AV/CALL.N°/DPTO)","CIUDAD","TELEFONO (S)","CORREO ELECTRONICO","COLEGIO PROFESIONAL","N° DE COLEGIATURA","CERTIFICADO DE HABILITACION VIGENTE (FECHA)","FECHA POSTULACION","DOCTORADO/ESPECIALIDAD","DOCTORADO/FEC. DE EXPEDICION DEL GDO-TIT","DOCTORADO/UNIVERSIDAD","DOCTORADO/CIUDAD-PAIS","POSTG.DIPL.AR. REFERIDAS A LA CONVOCATORIA/ESPECIALIDAD","POSTG.DIPL.AR. REFERIDAS A LA CONVOCATORIA/FEC. DE EXPEDICION DEL GDO-TIT","POSTG.DIPL.AR. REFERIDAS A LA CONVOCATORIA/UNIVERSIDAD","POSTG.DIPL.AR. REFERIDAS A LA CONVOCATORIA/CIUDAD-PAIS","BACHILLERATO O TITULO/ESPECIALIDAD","BACHILLERATO O TITULO/FEC. DE EXPEDICION DEL GDO-TIT","BACHILLERATO O TITULO/UNIVERSIDAD","BACHILLERATO O TITULO/CIUDAD-PAIS","ESTUDIOS/ESPECIALIDAD","ESTUDIOS/FEC. DE EXPEDICION DEL GDO-TIT","ESTUDIOS/UNIVERSIDAD","ESTUDIOS/CIUDAD-PAIS","NOMBRE DEL CURSO 01","N° HORAS 01","FECHA DE EXPEDICION 01","INSTITUCION QUE LO REALIZO 01","CIUDAD/PAIS 01","NOMBRE DEL CURSO 02","N° HORAS 02","FECHA DE EXPEDICION 02","INSTITUCION QUE LO REALIZO 02","CIUDAD/PAIS 02","NOMBRE DEL CURSO 03","N° HORAS 03","FECHA DE EXPEDICION 03","INSTITUCION QUE LO REALIZO 03","CIUDAD/PAIS 03","NOMBRE DEL CURSO 04","N° HORAS 04","FECHA DE EXPEDICION 04","INSTITUCION QUE LO REALIZO 04","CIUDAD/PAIS 04","NOMBRE DEL CURSO 05","N° HORAS 05","FECHA DE EXPEDICION 05","INSTITUCION QUE LO REALIZO 05","CIUDAD/PAIS 05","NOMBRE DEL CURSO 06","N° HORAS 06","FECHA DE EXPEDICION 06","INSTITUCION QUE LO REALIZO 06","CIUDAD/PAIS 06","NOMBRE DEL CURSO 07","N° HORAS 07","FECHA DE EXPEDICION 07","INSTITUCION QUE LO REALIZO 07","CIUDAD/PAIS 07","TOTAL HORAS CAPACITACION","N° 01","PUBLICO/PRIVADO 01","NOMBRE DE LA EMPRESA O ENTIDAD 01","CARGO DESEMPEÑADO 01","FECHA DE INICIO 01","FECHA DE TERMINO 01","DESCRIPCION DEL TRABAJO 01","DIF. FEC. EXP. LAB 01","N° 02","PUBLICO/PRIVADO 02","NOMBRE DE LA EMPRESA O ENTIDAD 02","CARGO DESEMPEÑADO 02","FECHA DE INICIO 02","FECHA DE TERMINO 02","DESCRIPCION DEL TRABAJO 02","DIF. FEC. EXP. LAB 02","N° 03","PUBLICO/PRIVADO 03","NOMBRE DE LA EMPRESA O ENTIDAD 03","CARGO DESEMPEÑADO 03","FECHA DE INICIO 03","FECHA DE TERMINO 03","DESCRIPCION DEL TRABAJO 03","DIF. FEC. EXP. LAB 03","N° 04","PUBLICO/PRIVADO 04","NOMBRE DE LA EMPRESA O ENTIDAD 04","CARGO DESEMPEÑADO 04","FECHA DE INICIO 04","FECHA DE TERMINO 04","DESCRIPCION DEL TRABAJO 04","DIF. FEC. EXP. LAB 04","N° 05","PUBLICO/PRIVADO 05","NOMBRE DE LA EMPRESA O ENTIDAD 05","CARGO DESEMPEÑADO 05","FECHA DE INICIO 05","FECHA DE TERMINO 05","DESCRIPCION DEL TRABAJO 05","DIF. FEC. EXP. LAB 05","N° 06","PUBLICO/PRIVADO 06","NOMBRE DE LA EMPRESA O ENTIDAD 06","CARGO DESEMPEÑADO 06","FECHA DE INICIO 06","FECHA DE TERMINO 06","DESCRIPCION DEL TRABAJO 06","DIF. FEC. EXP. LAB 06","N° 07","PUBLICO/PRIVADO 07","NOMBRE DE LA EMPRESA O ENTIDAD 07","CARGO DESEMPEÑADO 07","FECHA DE INICIO 07","FECHA DE TERMINO 07","DESCRIPCION DEL TRABAJO 07","DIF. FEC. EXP. LAB 07","N° 08","PUBLICO/PRIVADO 08","NOMBRE DE LA EMPRESA O ENTIDAD 08","CARGO DESEMPEÑADO 08","FECHA DE INICIO 08","FECHA DE TERMINO 08","DESCRIPCION DEL TRABAJO 08","DIF. FEC. EXP. LAB 08","N° 09","PUBLICO/PRIVADO 09","NOMBRE DE LA EMPRESA O ENTIDAD 09","CARGO DESEMPEÑADO 09","FECHA DE INICIO 09","FECHA DE TERMINO 09","DESCRIPCION DEL TRABAJO 09","DIF. FEC. EXP. LAB 09","N° 10","PUBLICO/PRIVADO 10","NOMBRE DE LA EMPRESA O ENTIDAD 10","CARGO DESEMPEÑADO 10","FECHA DE INICIO 10","FECHA DE TERMINO 10","DESCRIPCION DEL TRABAJO 10","DIF. FEC. EXP. LAB 10","TOTAL EXPERIENCIA EN PÚBLICO","TOTAL EXPERIENCIA EN PRIVADO","EXPERIENCIA GENERAL TOTAL","N° 01 R","NOMBRE DE LA ENTIDAD 01","CARGO DE LA REFERENCIA 01","NOMBRE DE LA PERSONA 01","TELEFONOS ACTUALIZADOS 01","N° 02 R","NOMBRE DE LA ENTIDAD 02","CARGO DE LA REFERENCIA 02","NOMBRE DE LA PERSONA 02","TELEFONOS ACTUALIZADOS 02","N° 03 R","NOMBRE DE LA ENTIDAD 03","CARGO DE LA REFERENCIA 03","NOMBRE DE LA PERSONA 03","TELEFONOS ACTUALIZADOS 03","N° 04 R","NOMBRE DE LA ENTIDAD 04","CARGO DE LA REFERENCIA 04","NOMBRE DE LA PERSONA 04","TELEFONOS ACTUALIZADOS 04","N° 05 R","NOMBRE DE LA ENTIDAD 05","CARGO DE LA REFERENCIA 05","NOMBRE DE LA PERSONA 05","TELEFONOS ACTUALIZADOS 05","TITULO 01","ESPECIALIDAD 01","FECHA DE EXPEDICION DEL TITULO 01","UNIVERSIDAD O INSTITUCION 01","CIUDAD/PAIS 01 A","TITULO 02","ESPECIALIDAD 02","FECHA DE EXPEDICION DEL TITULO 02","UNIVERSIDAD O INSTITUCION 02","CIUDAD/PAIS 02 A","TITULO 03","ESPECIALIDAD 03","FECHA DE EXPEDICION DEL TITULO 03","UNIVERSIDAD O INSTITUCION 03","CIUDAD/PAIS 03 A","TITULO 04","ESPECIALIDAD 04","FECHA DE EXPEDICION DEL TITULO 04","UNIVERSIDAD O INSTITUCION 04","CIUDAD/PAIS 04 A","TITULO 05","ESPECIALIDAD 05","FECHA DE EXPEDICION DEL TITULO 05","UNIVERSIDAD O INSTITUCION 05","CIUDAD/PAIS 05 A","N° PUESTO","DETALLE PUESTO","DEPENDENCIA PUESTO","N° PLAZAS PUESTO","CODIGO PUESTO","N° CONVOCATORIA PUESTO"]
[{"$f":"IF(ISBLANK(AnexoN°01!$D$15),\"\",AnexoN°01!$D$15)","v":""},{"$f":"IF(BDC[[#This Row],[N° DNI]]=\"\",\"\",IF(ISBLANK(AnexoN°01!$D$12),\"\",AnexoN°01!$D$12))","v":""},{"$f":"IF(BDC[[#This Row],[N° DNI]]=\"\",\"\",IF(ISBLANK(AnexoN°01!$D$13),\"\",AnexoN°01!$D$13))","v":""},{"$f":"IF(BDC[[#This Row],[N° DNI]]=\"\",\"\",IF(ISBLANK(AnexoN°01!$D$14),\"\",AnexoN°01!$D$14))","v":""},{"$f":"IF(BDC[[#This Row],[N° DNI]]=\"\",\"\",IF(ISBLANK(AnexoN°01!$D$16),\"\",AnexoN°01!$D$16))","v":""},{"$f":"IF(BDC[[#This Row],[N° DNI]]=\"\",\"\",IF(ISBLANK(AnexoN°01!$D$17),\"\",AnexoN°01!$D$17))","v":""},{"$f":"IFERROR(IF(ISBLANK(BDC[[#This Row],[FECHA DE NACIMIENTO]]),\"\",DATEDIF(BDC[[#This Row],[FECHA DE NACIMIENTO]],BDC[[#This Row],[FECHA POSTULACION]],\"Y\") &\" años, \"&\nDATEDIF(BDC[[#This Row],[FECHA DE NACIMIENTO]],BDC[[#This Row],[FECHA POSTULACION]],\"YM\") &\" m, \"&\nDATEDIF(BDC[[#This Row],[FECHA DE NACIMIENTO]],BDC[[#This Row],[FECHA POSTULACION]],\"MD\") &\" d \"),\"\")","v":""},{"$f":"IF(BDC[[#This Row],[N° DNI]]=\"\",\"\",IF(ISBLANK(AnexoN°01!$D$18),\"\",AnexoN°01!$D$18))","v":""},{"$f":"IF(BDC[[#This Row],[N° DNI]]=\"\",\"\",IF(ISBLANK(AnexoN°01!$D$19),\"\",AnexoN°01!$D$19))","v":""},{"$f":"IF(BDC[[#This Row],[N° DNI]]=\"\",\"\",IF(ISBLANK(AnexoN°01!$D$20),\"\",AnexoN°01!$D$20))","v":""},{"$f":"IF(BDC[[#This Row],[N° DNI]]=\"\",\"\",IF(ISBLANK(AnexoN°01!$D$21),\"\",AnexoN°01!$D$21))","v":""},{"$f":"IF(BDC[[#This Row],[N° DNI]]=\"\",\"\",IF(ISBLANK(AnexoN°01!$D$22),\"\",AnexoN°01!$D$22))","v":""},{"$f":"IF(BDC[[#This Row],[N° DNI]]=\"\",\"\",IF(ISBLANK(AnexoN°01!$D$23),\"\",AnexoN°01!$D$23))","v":""},{"$f":"IF(BDC[[#This Row],[N° DNI]]=\"\",\"\",IF(ISBLANK(AnexoN°01!$D$24),\"\",AnexoN°01!$D$24))","v":""},{"$f":"IF(BDC[[#This Row],[N° DNI]]=\"\",\"\",IF(ISBLANK(AnexoN°01!$D$36),\"\",AnexoN°01!$D$36))","v":""},{"$f":"IF(BDC[[#This Row],[N° DNI]]=\"\",\"\",IF(ISBLANK(AnexoN°02!$D$7),\"\",AnexoN°02!$D$7))","v":""},{"$f":"IF(BDC[[#This Row],[N° DNI]]=\"\",\"\",IF(ISBLANK(AnexoN°02!$E$7),\"\",AnexoN°02!$E$7))","v":""},{"$f":"IF(BDC[[#This Row],[N° DNI]]=\"\",\"\",IF(ISBLANK(AnexoN°02!$F$7),\"\",AnexoN°02!$F$7))","v":""},{"$f":"IF(BDC[[#This Row],[N° DNI]]=\"\",\"\",IF(ISBLANK(AnexoN°02!$G$7),\"\",AnexoN°02!$G$7))","v":""},{"$f":"IF(BDC[[#This Row],[N° DNI]]=\"\",\"\",IF(ISBLANK(AnexoN°02!$D$8),\"\",AnexoN°02!$D$8))","v":""},{"$f":"IF(BDC[[#This Row],[N° DNI]]=\"\",\"\",IF(ISBLANK(AnexoN°02!$E$8),\"\",AnexoN°02!$E$8))","v":""},{"$f":"IF(BDC[[#This Row],[N° DNI]]=\"\",\"\",IF(ISBLANK(AnexoN°02!$F$8),\"\",AnexoN°02!$F$8))","v":""},{"$f":"IF(BDC[[#This Row],[N° DNI]]=\"\",\"\",IF(ISBLANK(AnexoN°02!$G$8),\"\",AnexoN°02!$G$8))","v":""},{"$f":"IF(BDC[[#This Row],[N° DNI]]=\"\",\"\",IF(ISBLANK(AnexoN°02!$D$9),\"\",AnexoN°02!$D$9))","v":""},{"$f":"IF(BDC[[#This Row],[N° DNI]]=\"\",\"\",IF(ISBLANK(AnexoN°02!$E$9),\"\",AnexoN°02!$E$9))","v":""},{"$f":"IF(BDC[[#This Row],[N° DNI]]=\"\",\"\",IF(ISBLANK(AnexoN°02!$F$9),\"\",AnexoN°02!$F$9))","v":""},{"$f":"IF(BDC[[#This Row],[N° DNI]]=\"\",\"\",IF(ISBLANK(AnexoN°02!$G$9),\"\",AnexoN°02!$G$9))","v":""},{"$f":"IF(BDC[[#This Row],[N° DNI]]=\"\",\"\",IF(ISBLANK(AnexoN°02!$D$10),\"\",AnexoN°02!$D$10))","v":""},{"$f":"IF(BDC[[#This Row],[N° DNI]]=\"\",\"\",IF(ISBLANK(AnexoN°02!$E$10),\"\",AnexoN°02!$E$10))","v":""},{"$f":"IF(BDC[[#This Row],[N° DNI]]=\"\",\"\",IF(ISBLANK(AnexoN°02!$F$10),\"\",AnexoN°02!$F$10))","v":""},{"$f":"IF(BDC[[#This Row],[N° DNI]]=\"\",\"\",IF(ISBLANK(AnexoN°02!$G$10),\"\",AnexoN°02!$G$10))","v":""},{"$f":"IF(BDC[[#This Row],[N° DNI]]=\"\",\"\",IF(ISBLANK(AnexoN°02!$C$16),\"\",AnexoN°02!$C$16))","v":""},{"$f":"IF(BDC[[#This Row],[N° DNI]]=\"\",\"\",IF(ISBLANK(AnexoN°02!$D$16),\"\",AnexoN°02!$D$16))","v":""},{"$f":"IF(BDC[[#This Row],[N° DNI]]=\"\",\"\",IF(ISBLANK(AnexoN°02!$E$16),\"\",AnexoN°02!$E$16))","v":""},{"$f":"IF(BDC[[#This Row],[N° DNI]]=\"\",\"\",IF(ISBLANK(AnexoN°02!$F$16),\"\",AnexoN°02!$F$16))","v":""},{"$f":"IF(BDC[[#This Row],[N° DNI]]=\"\",\"\",IF(ISBLANK(AnexoN°02!$G$16),\"\",AnexoN°02!$G$16))","v":""},{"$f":"IF(BDC[[#This Row],[N° DNI]]=\"\",\"\",IF(ISBLANK(AnexoN°02!$C$17),\"\",AnexoN°02!$C$17))","v":""},{"$f":"IF(BDC[[#This Row],[N° DNI]]=\"\",\"\",IF(ISBLANK(AnexoN°02!$D$17),\"\",AnexoN°02!$D$17))","v":""},{"$f":"IF(BDC[[#This Row],[N° DNI]]=\"\",\"\",IF(ISBLANK(AnexoN°02!$E$17),\"\",AnexoN°02!$E$17))","v":""},{"$f":"IF(BDC[[#This Row],[N° DNI]]=\"\",\"\",IF(ISBLANK(AnexoN°02!$F$17),\"\",AnexoN°02!$F$17))","v":""},{"$f":"IF(BDC[[#This Row],[N° DNI]]=\"\",\"\",IF(ISBLANK(AnexoN°02!$G$17),\"\",AnexoN°02!$G$17))","v":""},{"$f":"IF(BDC[[#This Row],[N° DNI]]=\"\",\"\",IF(ISBLANK(AnexoN°02!$C$18),\"\",AnexoN°02!$C$18))","v":""},{"$f":"IF(BDC[[#This Row],[N° DNI]]=\"\",\"\",IF(ISBLANK(AnexoN°02!$D$18),\"\",AnexoN°02!$D$18))","v":""},{"$f":"IF(BDC[[#This Row],[N° DNI]]=\"\",\"\",IF(ISBLANK(AnexoN°02!$E$18),\"\",AnexoN°02!$E$18))","v":""},{"$f":"IF(BDC[[#This Row],[N° DNI]]=\"\",\"\",IF(ISBLANK(AnexoN°02!$F$18),\"\",AnexoN°02!$F$18))","v":""},{"$f":"IF(BDC[[#This Row],[N° DNI]]=\"\",\"\",IF(ISBLANK(AnexoN°02!$G$18),\"\",AnexoN°02!$G$18))","v":""},{"$f":"IF(BDC[[#This Row],[N° DNI]]=\"\",\"\",IF(ISBLANK(AnexoN°02!$C$19),\"\",AnexoN°02!$C$19))","v":""},{"$f":"IF(BDC[[#This Row],[N° DNI]]=\"\",\"\",IF(ISBLANK(AnexoN°02!$D$19),\"\",AnexoN°02!$D$19))","v":""},{"$f":"IF(BDC[[#This Row],[N° DNI]]=\"\",\"\",IF(ISBLANK(AnexoN°02!$E$19),\"\",AnexoN°02!$E$19))","v":""},{"$f":"IF(BDC[[#This Row],[N° DNI]]=\"\",\"\",IF(ISBLANK(AnexoN°02!$F$19),\"\",AnexoN°02!$F$19))","v":""},{"$f":"IF(BDC[[#This Row],[N° DNI]]=\"\",\"\",IF(ISBLANK(AnexoN°02!$G$19),\"\",AnexoN°02!$G$19))","v":""},{"$f":"IF(BDC[[#This Row],[N° DNI]]=\"\",\"\",IF(ISBLANK(AnexoN°02!$C$20),\"\",AnexoN°02!$C$20))","v":""},{"$f":"IF(BDC[[#This Row],[N° DNI]]=\"\",\"\",IF(ISBLANK(AnexoN°02!$D$20),\"\",AnexoN°02!$D$20))","v":""},{"$f":"IF(BDC[[#This Row],[N° DNI]]=\"\",\"\",IF(ISBLANK(AnexoN°02!$E$20),\"\",AnexoN°02!$E$20))","v":""},{"$f":"IF(BDC[[#This Row],[N° DNI]]=\"\",\"\",IF(ISBLANK(AnexoN°02!$F$20),\"\",AnexoN°02!$F$20))","v":""},{"$f":"IF(BDC[[#This Row],[N° DNI]]=\"\",\"\",IF(ISBLANK(AnexoN°02!$G$20),\"\",AnexoN°02!$G$20))","v":""},{"$f":"IF(BDC[[#This Row],[N° DNI]]=\"\",\"\",IF(ISBLANK(AnexoN°02!$C$21),\"\",AnexoN°02!$C$21))","v":""},{"$f":"IF(BDC[[#This Row],[N° DNI]]=\"\",\"\",IF(ISBLANK(AnexoN°02!$D$21),\"\",AnexoN°02!$D$21))","v":""},{"$f":"IF(BDC[[#This Row],[N° DNI]]=\"\",\"\",IF(ISBLANK(AnexoN°02!$E$21),\"\",AnexoN°02!$E$21))","v":""},{"$f":"IF(BDC[[#This Row],[N° DNI]]=\"\",\"\",IF(ISBLANK(AnexoN°02!$F$21),\"\",AnexoN°02!$F$21))","v":""},{"$f":"IF(BDC[[#This Row],[N° DNI]]=\"\",\"\",IF(ISBLANK(AnexoN°02!$G$21),\"\",AnexoN°02!$G$21))","v":""},{"$f":"IF(BDC[[#This Row],[N° DNI]]=\"\",\"\",IF(ISBLANK(AnexoN°02!$C$22),\"\",AnexoN°02!$C$22))","v":""},{"$f":"IF(BDC[[#This Row],[N° DNI]]=\"\",\"\",IF(ISBLANK(AnexoN°02!$D$22),\"\",AnexoN°02!$D$22))","v":""},{"$f":"IF(BDC[[#This Row],[N° DNI]]=\"\",\"\",IF(ISBLANK(AnexoN°02!$E$22),\"\",AnexoN°02!$E$22))","v":""},{"$f":"IF(BDC[[#This Row],[N° DNI]]=\"\",\"\",IF(ISBLANK(AnexoN°02!$F$22),\"\",AnexoN°02!$F$22))","v":""},{"$f":"IF(BDC[[#This Row],[N° DNI]]=\"\",\"\",IF(ISBLANK(AnexoN°02!$G$22),\"\",AnexoN°02!$G$22))","v":""},{"$f":"SUM(BDC[N° HORAS 01],BDC[N° HORAS 02],BDC[N° HORAS 03],BDC[N° HORAS 04],BDC[N° HORAS 05],BDC[N° HORAS 06],BDC[N° HORAS 07])&\" horas\"","v":"0 horas"},{"$f":"IF(BDC[[#This Row],[N° DNI]]=\"\",\"\",IF(ISBLANK(AnexoN°02!$A$28),\"\",AnexoN°02!$A$28))","v":""},{"$f":"IF(BDC[[#This Row],[N° DNI]]=\"\",\"\",IF(ISBLANK(AnexoN°02!$B$28),\"\",AnexoN°02!$B$28))","v":""},{"$f":"IF(BDC[[#This Row],[N° DNI]]=\"\",\"\",IF(ISBLANK(AnexoN°02!$C$28),\"\",AnexoN°02!$C$28))","v":""},{"$f":"IF(BDC[[#This Row],[N° DNI]]=\"\",\"\",IF(ISBLANK(AnexoN°02!$D$28),\"\",AnexoN°02!$D$28))","v":""},{"$f":"IF(BDC[[#This Row],[N° DNI]]=\"\",\"\",IF(ISBLANK(AnexoN°02!$E$28),\"\",AnexoN°02!$E$28))","v":""},{"$f":"IF(BDC[[#This Row],[N° DNI]]=\"\",\"\",IF(ISBLANK(AnexoN°02!$F$28),\"\",AnexoN°02!$F$28))","v":""},{"$f":"IF(BDC[[#This Row],[N° DNI]]=\"\",\"\",IF(ISBLANK(AnexoN°02!$G$28),\"\",AnexoN°02!$G$28))","v":""},{"$f":"IFERROR(DATEDIF(BDC[[#This Row],[FECHA DE INICIO 01]],BDC[[#This Row],[FECHA DE TERMINO 01]],\"y\")&\" años, \"&\nDATEDIF(BDC[[#This Row],[FECHA DE INICIO 01]],BDC[[#This Row],[FECHA DE TERMINO 01]],\"YM\")&\" m, \"&\nDATEDIF(BDC[[#This Row],[FECHA DE INICIO 01]],BDC[[#This Row],[FECHA DE TERMINO 01]],\"MD\") &\" d \",\"\")","v":""},{"$f":"IF(BDC[[#This Row],[N° DNI]]=\"\",\"\",IF(ISBLANK(AnexoN°02!$A$29),\"\",AnexoN°02!$A$29))","v":""},{"$f":"IF(BDC[[#This Row],[N° DNI]]=\"\",\"\",IF(ISBLANK(AnexoN°02!$B$29),\"\",AnexoN°02!$B$29))","v":""},{"$f":"IF(BDC[[#This Row],[N° DNI]]=\"\",\"\",IF(ISBLANK(AnexoN°02!$C$29),\"\",AnexoN°02!$C$29))","v":""},{"$f":"IF(BDC[[#This Row],[N° DNI]]=\"\",\"\",IF(ISBLANK(AnexoN°02!$D$29),\"\",AnexoN°02!$D$29))","v":""},{"$f":"IF(BDC[[#This Row],[N° DNI]]=\"\",\"\",IF(ISBLANK(AnexoN°02!$E$29),\"\",AnexoN°02!$E$29))","v":""},{"$f":"IF(BDC[[#This Row],[N° DNI]]=\"\",\"\",IF(ISBLANK(AnexoN°02!$F$29),\"\",AnexoN°02!$F$29))","v":""},{"$f":"IF(BDC[[#This Row],[N° DNI]]=\"\",\"\",IF(ISBLANK(AnexoN°02!$G$29),\"\",AnexoN°02!$G$29))","v":""},{"$f":"IFERROR(DATEDIF(BDC[[#This Row],[FECHA DE INICIO 02]],BDC[[#This Row],[FECHA DE TERMINO 02]],\"y\")&\" años, \"&\nDATEDIF(BDC[[#This Row],[FECHA DE INICIO 02]],BDC[[#This Row],[FECHA DE TERMINO 02]],\"YM\")&\" m, \"&\nDATEDIF(BDC[[#This Row],[FECHA DE INICIO 02]],BDC[[#This Row],[FECHA DE TERMINO 02]],\"MD\") &\" d \",\"\")","v":""},{"$f":"IF(BDC[[#This Row],[N° DNI]]=\"\",\"\",IF(ISBLANK(AnexoN°02!$A$30),\"\",AnexoN°02!$A$30))","v":""},{"$f":"IF(BDC[[#This Row],[N° DNI]]=\"\",\"\",IF(ISBLANK(AnexoN°02!$B$30),\"\",AnexoN°02!$B$30))","v":""},{"$f":"IF(BDC[[#This Row],[N° DNI]]=\"\",\"\",IF(ISBLANK(AnexoN°02!$C$30),\"\",AnexoN°02!$C$30))","v":""},{"$f":"IF(BDC[[#This Row],[N° DNI]]=\"\",\"\",IF(ISBLANK(AnexoN°02!$D$30),\"\",AnexoN°02!$D$30))","v":""},{"$f":"IF(BDC[[#This Row],[N° DNI]]=\"\",\"\",IF(ISBLANK(AnexoN°02!$E$30),\"\",AnexoN°02!$E$30))","v":""},{"$f":"IF(BDC[[#This Row],[N° DNI]]=\"\",\"\",IF(ISBLANK(AnexoN°02!$F$30),\"\",AnexoN°02!$F$30))","v":""},{"$f":"IF(BDC[[#This Row],[N° DNI]]=\"\",\"\",IF(ISBLANK(AnexoN°02!$G$30),\"\",AnexoN°02!$G$30))","v":""},{"$f":"IFERROR(DATEDIF(BDC[[#This Row],[FECHA DE INICIO 03]],BDC[[#This Row],[FECHA DE TERMINO 03]],\"y\")&\" años, \"&\nDATEDIF(BDC[[#This Row],[FECHA DE INICIO 03]],BDC[[#This Row],[FECHA DE TERMINO 03]],\"YM\")&\" m, \"&\nDATEDIF(BDC[[#This Row],[FECHA DE INICIO 03]],BDC[[#This Row],[FECHA DE TERMINO 03]],\"MD\") &\" d \",\"\")","v":""},{"$f":"IF(BDC[[#This Row],[N° DNI]]=\"\",\"\",IF(ISBLANK(AnexoN°02!$A$31),\"\",AnexoN°02!$A$31))","v":""},{"$f":"IF(BDC[[#This Row],[N° DNI]]=\"\",\"\",IF(ISBLANK(AnexoN°02!$B$31),\"\",AnexoN°02!$B$31))","v":""},{"$f":"IF(BDC[[#This Row],[N° DNI]]=\"\",\"\",IF(ISBLANK(AnexoN°02!$C$31),\"\",AnexoN°02!$C$31))","v":""},{"$f":"IF(BDC[[#This Row],[N° DNI]]=\"\",\"\",IF(ISBLANK(AnexoN°02!$D$31),\"\",AnexoN°02!$D$31))","v":""},{"$f":"IF(BDC[[#This Row],[N° DNI]]=\"\",\"\",IF(ISBLANK(AnexoN°02!$E$31),\"\",AnexoN°02!$E$31))","v":""},{"$f":"IF(BDC[[#This Row],[N° DNI]]=\"\",\"\",IF(ISBLANK(AnexoN°02!$F$31),\"\",AnexoN°02!$F$31))","v":""},{"$f":"IF(BDC[[#This Row],[N° DNI]]=\"\",\"\",IF(ISBLANK(AnexoN°02!$G$31),\"\",AnexoN°02!$G$31))","v":""},{"$f":"IFERROR(DATEDIF(BDC[[#This Row],[FECHA DE INICIO 04]],BDC[[#This Row],[FECHA DE TERMINO 04]],\"y\")&\" años, \"&\nDATEDIF(BDC[[#This Row],[FECHA DE INICIO 04]],BDC[[#This Row],[FECHA DE TERMINO 04]],\"YM\")&\" m, \"&\nDATEDIF(BDC[[#This Row],[FECHA DE INICIO 04]],BDC[[#This Row],[FECHA DE TERMINO 04]],\"MD\") &\" d \",\"\")","v":""},{"$f":"IF(BDC[[#This Row],[N° DNI]]=\"\",\"\",IF(ISBLANK(AnexoN°02!$A$32),\"\",AnexoN°02!$A$32))","v":""},{"$f":"IF(BDC[[#This Row],[N° DNI]]=\"\",\"\",IF(ISBLANK(AnexoN°02!$B$32),\"\",AnexoN°02!$B$32))","v":""},{"$f":"IF(BDC[[#This Row],[N° DNI]]=\"\",\"\",IF(ISBLANK(AnexoN°02!$C$32),\"\",AnexoN°02!$C$32))","v":""},{"$f":"IF(BDC[[#This Row],[N° DNI]]=\"\",\"\",IF(ISBLANK(AnexoN°02!$D$32),\"\",AnexoN°02!$D$32))","v":""},{"$f":"IF(BDC[[#This Row],[N° DNI]]=\"\",\"\",IF(ISBLANK(AnexoN°02!$E$32),\"\",AnexoN°02!$E$32))","v":""},{"$f":"IF(BDC[[#This Row],[N° DNI]]=\"\",\"\",IF(ISBLANK(AnexoN°02!$F$32),\"\",AnexoN°02!$F$32))","v":""},{"$f":"IF(BDC[[#This Row],[N° DNI]]=\"\",\"\",IF(ISBLANK(AnexoN°02!$G$32),\"\",AnexoN°02!$G$32))","v":""},{"$f":"IFERROR(DATEDIF(BDC[[#This Row],[FECHA DE INICIO 05]],BDC[[#This Row],[FECHA DE TERMINO 05]],\"y\")&\" años, \"&\nDATEDIF(BDC[[#This Row],[FECHA DE INICIO 05]],BDC[[#This Row],[FECHA DE TERMINO 05]],\"YM\")&\" m, \"&\nDATEDIF(BDC[[#This Row],[FECHA DE INICIO 05]],BDC[[#This Row],[FECHA DE TERMINO 05]],\"MD\") &\" d \",\"\")","v":""},{"$f":"IF(BDC[[#This Row],[N° DNI]]=\"\",\"\",IF(ISBLANK(AnexoN°02!$A$33),\"\",AnexoN°02!$A$33))","v":""},{"$f":"IF(BDC[[#This Row],[N° DNI]]=\"\",\"\",IF(ISBLANK(AnexoN°02!$B$33),\"\",AnexoN°02!$B$33))","v":""},{"$f":"IF(BDC[[#This Row],[N° DNI]]=\"\",\"\",IF(ISBLANK(AnexoN°02!$C$33),\"\",AnexoN°02!$C$33))","v":""},{"$f":"IF(BDC[[#This Row],[N° DNI]]=\"\",\"\",IF(ISBLANK(AnexoN°02!$D$33),\"\",AnexoN°02!$D$33))","v":""},{"$f":"IF(BDC[[#This Row],[N° DNI]]=\"\",\"\",IF(ISBLANK(AnexoN°02!$E$33),\"\",AnexoN°02!$E$33))","v":""},{"$f":"IF(BDC[[#This Row],[N° DNI]]=\"\",\"\",IF(ISBLANK(AnexoN°02!$F$33),\"\",AnexoN°02!$F$33))","v":""},{"$f":"IF(BDC[[#This Row],[N° DNI]]=\"\",\"\",IF(ISBLANK(AnexoN°02!$G$33),\"\",AnexoN°02!$G$33))","v":""},{"$f":"IFERROR(DATEDIF(BDC[[#This Row],[FECHA DE INICIO 06]],BDC[[#This Row],[FECHA DE TERMINO 06]],\"y\")&\" años, \"&\nDATEDIF(BDC[[#This Row],[FECHA DE INICIO 06]],BDC[[#This Row],[FECHA DE TERMINO 06]],\"YM\")&\" m, \"&\nDATEDIF(BDC[[#This Row],[FECHA DE INICIO 06]],BDC[[#This Row],[FECHA DE TERMINO 06]],\"MD\") &\" d \",\"\")","v":""},{"$f":"IF(BDC[[#This Row],[N° DNI]]=\"\",\"\",IF(ISBLANK(AnexoN°02!$A$35),\"\",AnexoN°02!$A$35))","v":""},{"$f":"IF(BDC[[#This Row],[N° DNI]]=\"\",\"\",IF(ISBLANK(AnexoN°02!$B$35),\"\",AnexoN°02!$B$35))","v":""},{"$f":"IF(BDC[[#This Row],[N° DNI]]=\"\",\"\",IF(ISBLANK(AnexoN°02!$C$35),\"\",AnexoN°02!$C$35))","v":""},{"$f":"IF(BDC[[#This Row],[N° DNI]]=\"\",\"\",IF(ISBLANK(AnexoN°02!$D$35),\"\",AnexoN°02!$D$35))","v":""},{"$f":"IF(BDC[[#This Row],[N° DNI]]=\"\",\"\",IF(ISBLANK(AnexoN°02!$E$35),\"\",AnexoN°02!$E$35))","v":""},{"$f":"IF(BDC[[#This Row],[N° DNI]]=\"\",\"\",IF(ISBLANK(AnexoN°02!$F$35),\"\",AnexoN°02!$F$35))","v":""},{"$f":"IF(BDC[[#This Row],[N° DNI]]=\"\",\"\",IF(ISBLANK(AnexoN°02!$G$35),\"\",AnexoN°02!$G$35))","v":""},{"$f":"IFERROR(DATEDIF(BDC[[#This Row],[FECHA DE INICIO 07]],BDC[[#This Row],[FECHA DE TERMINO 07]],\"y\")&\" años, \"&\nDATEDIF(BDC[[#This Row],[FECHA DE INICIO 07]],BDC[[#This Row],[FECHA DE TERMINO 07]],\"YM\")&\" m, \"&\nDATEDIF(BDC[[#This Row],[FECHA DE INICIO 07]],BDC[[#This Row],[FECHA DE TERMINO 07]],\"MD\") &\" d \",\"\")","v":""},{"$f":"IF(BDC[[#This Row],[N° DNI]]=\"\",\"\",IF(ISBLANK(AnexoN°02!$A$36),\"\",AnexoN°02!$A$36))","v":""},{"$f":"IF(BDC[[#This Row],[N° DNI]]=\"\",\"\",IF(ISBLANK(AnexoN°02!$B$36),\"\",AnexoN°02!$B$36))","v":""},{"$f":"IF(BDC[[#This Row],[N° DNI]]=\"\",\"\",IF(ISBLANK(AnexoN°02!$C$36),\"\",AnexoN°02!$C$36))","v":""},{"$f":"IF(BDC[[#This Row],[N° DNI]]=\"\",\"\",IF(ISBLANK(AnexoN°02!$D$36),\"\",AnexoN°02!$D$36))","v":""},{"$f":"IF(BDC[[#This Row],[N° DNI]]=\"\",\"\",IF(ISBLANK(AnexoN°02!$E$36),\"\",AnexoN°02!$E$36))","v":""},{"$f":"IF(BDC[[#This Row],[N° DNI]]=\"\",\"\",IF(ISBLANK(AnexoN°02!$F$36),\"\",AnexoN°02!$F$36))","v":""},{"$f":"IF(BDC[[#This Row],[N° DNI]]=\"\",\"\",IF(ISBLANK(AnexoN°02!$G$36),\"\",AnexoN°02!$G$36))","v":""},{"$f":"IFERROR(DATEDIF(BDC[[#This Row],[FECHA DE INICIO 08]],BDC[[#This Row],[FECHA DE TERMINO 08]],\"y\")&\" años, \"&\nDATEDIF(BDC[[#This Row],[FECHA DE INICIO 08]],BDC[[#This Row],[FECHA DE TERMINO 08]],\"YM\")&\" m, \"&\nDATEDIF(BDC[[#This Row],[FECHA DE INICIO 08]],BDC[[#This Row],[FECHA DE TERMINO 08]],\"MD\") &\" d \",\"\")","v":""},{"$f":"IF(BDC[[#This Row],[N° DNI]]=\"\",\"\",IF(ISBLANK(AnexoN°02!$A$37),\"\",AnexoN°02!$A$37))","v":""},{"$f":"IF(BDC[[#This Row],[N° DNI]]=\"\",\"\",IF(ISBLANK(AnexoN°02!$B$37),\"\",AnexoN°02!$B$37))","v":""},{"$f":"IF(BDC[[#This Row],[N° DNI]]=\"\",\"\",IF(ISBLANK(AnexoN°02!$C$37),\"\",AnexoN°02!$C$37))","v":""},{"$f":"IF(BDC[[#This Row],[N° DNI]]=\"\",\"\",IF(ISBLANK(AnexoN°02!$D$37),\"\",AnexoN°02!$D$37))","v":""},{"$f":"IF(BDC[[#This Row],[N° DNI]]=\"\",\"\",IF(ISBLANK(AnexoN°02!$E$37),\"\",AnexoN°02!$E$37))","v":""},{"$f":"IF(BDC[[#This Row],[N° DNI]]=\"\",\"\",IF(ISBLANK(AnexoN°02!$F$37),\"\",AnexoN°02!$F$37))","v":""},{"$f":"IF(BDC[[#This Row],[N° DNI]]=\"\",\"\",IF(ISBLANK(AnexoN°02!$G$37),\"\",AnexoN°02!$G$37))","v":""},{"$f":"IFERROR(DATEDIF(BDC[[#This Row],[FECHA DE INICIO 09]],BDC[[#This Row],[FECHA DE TERMINO 09]],\"y\")&\" años, \"&\nDATEDIF(BDC[[#This Row],[FECHA DE INICIO 09]],BDC[[#This Row],[FECHA DE TERMINO 09]],\"YM\")&\" m, \"&\nDATEDIF(BDC[[#This Row],[FECHA DE INICIO 09]],BDC[[#This Row],[FECHA DE TERMINO 09]],\"MD\") &\" d \",\"\")","v":""},{"$f":"IF(BDC[[#This Row],[N° DNI]]=\"\",\"\",IF(ISBLANK(AnexoN°02!$A$38),\"\",AnexoN°02!$A$38))","v":""},{"$f":"IF(BDC[[#This Row],[N° DNI]]=\"\",\"\",IF(ISBLANK(AnexoN°02!$B$38),\"\",AnexoN°02!$B$38))","v":""},{"$f":"IF(BDC[[#This Row],[N° DNI]]=\"\",\"\",IF(ISBLANK(AnexoN°02!$C$38),\"\",AnexoN°02!$C$38))","v":""},{"$f":"IF(BDC[[#This Row],[N° DNI]]=\"\",\"\",IF(ISBLANK(AnexoN°02!$D$38),\"\",AnexoN°02!$D$38))","v":""},{"$f":"IF(BDC[[#This Row],[N° DNI]]=\"\",\"\",IF(ISBLANK(AnexoN°02!$E$38),\"\",AnexoN°02!$E$38))","v":""},{"$f":"IF(BDC[[#This Row],[N° DNI]]=\"\",\"\",IF(ISBLANK(AnexoN°02!$F$38),\"\",AnexoN°02!$F$38))","v":""},{"$f":"IF(BDC[[#This Row],[N° DNI]]=\"\",\"\",IF(ISBLANK(AnexoN°02!$G$38),\"\",AnexoN°02!$G$38))","v":""},{"$f":"IFERROR(DATEDIF(BDC[[#This Row],[FECHA DE INICIO 10]],BDC[[#This Row],[FECHA DE TERMINO 10]],\"y\")&\" años, \"&\nDATEDIF(BDC[[#This Row],[FECHA DE INICIO 10]],BDC[[#This Row],[FECHA DE TERMINO 10]],\"YM\")&\" m, \"&\nDATEDIF(BDC[[#This Row],[FECHA DE INICIO 10]],BDC[[#This Row],[FECHA DE TERMINO 10]],\"MD\") &\" d \",\"\")","v":""},{"$f":"REF_TBL!$J$18","v":"0 años, 0 m, 0 d"},{"$f":"REF_TBL!$J$19","v":"0 años, 0 m, 0 d"},{"$f":"REF_TBL!$J$25","v":"0 años, 0 m, 0 d"},{"$f":"IF(BDC[[#This Row],[N° DNI]]=\"\",\"\",IF(ISBLANK(AnexoN°02!$C$44),\"\",AnexoN°02!$C$44))","v":""},{"$f":"IF(BDC[[#This Row],[N° DNI]]=\"\",\"\",IF(ISBLANK(AnexoN°02!$D$44),\"\",AnexoN°02!$D$44))","v":""},{"$f":"IF(BDC[[#This Row],[N° DNI]]=\"\",\"\",IF(ISBLANK(AnexoN°02!$E$44),\"\",AnexoN°02!$E$44))","v":""},{"$f":"IF(BDC[[#This Row],[N° DNI]]=\"\",\"\",IF(ISBLANK(AnexoN°02!$F$44),\"\",AnexoN°02!$F$44))","v":""},{"$f":"IF(BDC[[#This Row],[N° DNI]]=\"\",\"\",IF(ISBLANK(AnexoN°02!$G$44),\"\",AnexoN°02!$G$44))","v":""},{"$f":"IF(BDC[[#This Row],[N° DNI]]=\"\",\"\",IF(ISBLANK(AnexoN°02!$C$45),\"\",AnexoN°02!$C$45))","v":""},{"$f":"IF(BDC[[#This Row],[N° DNI]]=\"\",\"\",IF(ISBLANK(AnexoN°02!$D$45),\"\",AnexoN°02!$D$45))","v":""},{"$f":"IF(BDC[[#This Row],[N° DNI]]=\"\",\"\",IF(ISBLANK(AnexoN°02!$E$45),\"\",AnexoN°02!$E$45))","v":""},{"$f":"IF(BDC[[#This Row],[N° DNI]]=\"\",\"\",IF(ISBLANK(AnexoN°02!$F$45),\"\",AnexoN°02!$F$45))","v":""},{"$f":"IF(BDC[[#This Row],[N° DNI]]=\"\",\"\",IF(ISBLANK(AnexoN°02!$G$45),\"\",AnexoN°02!$G$45))","v":""},{"$f":"IF(BDC[[#This Row],[N° DNI]]=\"\",\"\",IF(ISBLANK(AnexoN°02!$C$46),\"\",AnexoN°02!$C$46))","v":""},{"$f":"IF(BDC[[#This Row],[N° DNI]]=\"\",\"\",IF(ISBLANK(AnexoN°02!$D$46),\"\",AnexoN°02!$D$46))","v":""},{"$f":"IF(BDC[[#This Row],[N° DNI]]=\"\",\"\",IF(ISBLANK(AnexoN°02!$E$46),\"\",AnexoN°02!$E$46))","v":""},{"$f":"IF(BDC[[#This Row],[N° DNI]]=\"\",\"\",IF(ISBLANK(AnexoN°02!$F$46),\"\",AnexoN°02!$F$46))","v":""},{"$f":"IF(BDC[[#This Row],[N° DNI]]=\"\",\"\",IF(ISBLANK(AnexoN°02!$G$46),\"\",AnexoN°02!$G$46))","v":""},{"$f":"IF(BDC[[#This Row],[N° DNI]]=\"\",\"\",IF(ISBLANK(AnexoN°02!$C$47),\"\",AnexoN°02!$C$47))","v":""},{"$f":"IF(BDC[[#This Row],[N° DNI]]=\"\",\"\",IF(ISBLANK(AnexoN°02!$D$47),\"\",AnexoN°02!$D$47))","v":""},{"$f":"IF(BDC[[#This Row],[N° DNI]]=\"\",\"\",IF(ISBLANK(AnexoN°02!$E$47),\"\",AnexoN°02!$E$47))","v":""},{"$f":"IF(BDC[[#This Row],[N° DNI]]=\"\",\"\",IF(ISBLANK(AnexoN°02!$F$47),\"\",AnexoN°02!$F$47))","v":""},{"$f":"IF(BDC[[#This Row],[N° DNI]]=\"\",\"\",IF(ISBLANK(AnexoN°02!$G$47),\"\",AnexoN°02!$G$47))","v":""},{"$f":"IF(BDC[[#This Row],[N° DNI]]=\"\",\"\",IF(ISBLANK(AnexoN°02!$C$48),\"\",AnexoN°02!$C$48))","v":""},{"$f":"IF(BDC[[#This Row],[N° DNI]]=\"\",\"\",IF(ISBLANK(AnexoN°02!$D$48),\"\",AnexoN°02!$D$48))","v":""},{"$f":"IF(BDC[[#This Row],[N° DNI]]=\"\",\"\",IF(ISBLANK(AnexoN°02!$E$48),\"\",AnexoN°02!$E$48))","v":""},{"$f":"IF(BDC[[#This Row],[N° DNI]]=\"\",\"\",IF(ISBLANK(AnexoN°02!$F$48),\"\",AnexoN°02!$F$48))","v":""},{"$f":"IF(BDC[[#This Row],[N° DNI]]=\"\",\"\",IF(ISBLANK(AnexoN°02!$G$48),\"\",AnexoN°02!$G$48))","v":""},{"$f":"IF(BDC[[#This Row],[N° DNI]]=\"\",\"\",IF(ISBLANK(AnexoN°02!$C$54),\"\",AnexoN°02!$C$54))","v":""},{"$f":"IF(BDC[[#This Row],[N° DNI]]=\"\",\"\",IF(ISBLANK(AnexoN°02!$D$54),\"\",AnexoN°02!$D$54))","v":""},{"$f":"IF(BDC[[#This Row],[N° DNI]]=\"\",\"\",IF(ISBLANK(AnexoN°02!$E$54),\"\",AnexoN°02!$E$54))","v":""},{"$f":"IF(BDC[[#This Row],[N° DNI]]=\"\",\"\",IF(ISBLANK(AnexoN°02!$F$54),\"\",AnexoN°02!$F$54))","v":""},{"$f":"IF(BDC[[#This Row],[N° DNI]]=\"\",\"\",IF(ISBLANK(AnexoN°02!$G$54),\"\",AnexoN°02!$G$54))","v":""},{"$f":"IF(BDC[[#This Row],[N° DNI]]=\"\",\"\",IF(ISBLANK(AnexoN°02!$C$55),\"\",AnexoN°02!$C$55))","v":""},{"$f":"IF(BDC[[#This Row],[N° DNI]]=\"\",\"\",IF(ISBLANK(AnexoN°02!$D$55),\"\",AnexoN°02!$D$55))","v":""},{"$f":"IF(BDC[[#This Row],[N° DNI]]=\"\",\"\",IF(ISBLANK(AnexoN°02!$E$55),\"\",AnexoN°02!$E$55))","v":""},{"$f":"IF(BDC[[#This Row],[N° DNI]]=\"\",\"\",IF(ISBLANK(AnexoN°02!$F$55),\"\",AnexoN°02!$F$55))","v":""},{"$f":"IF(BDC[[#This Row],[N° DNI]]=\"\",\"\",IF(ISBLANK(AnexoN°02!$G$55),\"\",AnexoN°02!$G$55))","v":""},{"$f":"IF(BDC[[#This Row],[N° DNI]]=\"\",\"\",IF(ISBLANK(AnexoN°02!$C$56),\"\",AnexoN°02!$C$56))","v":""},{"$f":"IF(BDC[[#This Row],[N° DNI]]=\"\",\"\",IF(ISBLANK(AnexoN°02!$D$56),\"\",AnexoN°02!$D$56))","v":""},{"$f":"IF(BDC[[#This Row],[N° DNI]]=\"\",\"\",IF(ISBLANK(AnexoN°02!$E$56),\"\",AnexoN°02!$E$56))","v":""},{"$f":"IF(BDC[[#This Row],[N° DNI]]=\"\",\"\",IF(ISBLANK(AnexoN°02!$F$56),\"\",AnexoN°02!$F$56))","v":""},{"$f":"IF(BDC[[#This Row],[N° DNI]]=\"\",\"\",IF(ISBLANK(AnexoN°02!$G$56),\"\",AnexoN°02!$G$56))","v":""},{"$f":"IF(BDC[[#This Row],[N° DNI]]=\"\",\"\",IF(ISBLANK(AnexoN°02!$C$57),\"\",AnexoN°02!$C$57))","v":""},{"$f":"IF(BDC[[#This Row],[N° DNI]]=\"\",\"\",IF(ISBLANK(AnexoN°02!$D$57),\"\",AnexoN°02!$D$57))","v":""},{"$f":"IF(BDC[[#This Row],[N° DNI]]=\"\",\"\",IF(ISBLANK(AnexoN°02!$E$57),\"\",AnexoN°02!$E$57))","v":""},{"$f":"IF(BDC[[#This Row],[N° DNI]]=\"\",\"\",IF(ISBLANK(AnexoN°02!$F$57),\"\",AnexoN°02!$F$57))","v":""},{"$f":"IF(BDC[[#This Row],[N° DNI]]=\"\",\"\",IF(ISBLANK(AnexoN°02!$G$57),\"\",AnexoN°02!$G$57))","v":""},{"$f":"IF(BDC[[#This Row],[N° DNI]]=\"\",\"\",IF(ISBLANK(AnexoN°02!$C$58),\"\",AnexoN°02!$C$58))","v":""},{"$f":"IF(BDC[[#This Row],[N° DNI]]=\"\",\"\",IF(ISBLANK(AnexoN°02!$D$58),\"\",AnexoN°02!$D$58))","v":""},{"$f":"IF(BDC[[#This Row],[N° DNI]]=\"\",\"\",IF(ISBLANK(AnexoN°02!$E$58),\"\",AnexoN°02!$E$58))","v":""},{"$f":"IF(BDC[[#This Row],[N° DNI]]=\"\",\"\",IF(ISBLANK(AnexoN°02!$F$58),\"\",AnexoN°02!$F$58))","v":""},{"$f":"IF(BDC[[#This Row],[N° DNI]]=\"\",\"\",IF(ISBLANK(AnexoN°02!$G$58),\"\",AnexoN°02!$G$58))","v":""},null,{"$f":"IF(BDC[[#This Row],[N° DNI]]=\"\",\"\",IF(ISBLANK(AnexoN°01!$A$8),\"\",AnexoN°01!$A$8))","v":""},{"$f":"IF(BDC[[#This Row],[N° DNI]]=\"\",\"\",IF(ISBLANK(AnexoN°01!$D$3),\"\",AnexoN°01!$D$3))","v":""},null,{"$f":"IF(BDC[[#This Row],[DETALLE PUESTO]]=\"\",\"\",IF(ISBLANK(VLOOKUP(BDC[[#This Row],[DETALLE PUESTO]],tblPue[],4,FALSE)),\"\",VLOOKUP(BDC[[#This Row],[DETALLE PUESTO]],tblPue[],4,FALSE)))","v":""},{"$f":"REF_TBL!$Q$4","v":"N° 001-2024"}]

{"sheet":"REF_TBL","index":3,"n_rows":65,"n_cols":20,"rows_kept":65,"cut":false,"hidden":true,"merged":[]}
[]
[]
["N°","N° DNI","PUBLICO/PRIVADO","AÑOS","MESES","DIAS","DIAS TOTALES",null,null,null,null,null,"DETALLE PUESTO","DEPENDENCIA PUESTO","N° PLAZAS PUESTO","CODIGO PUESTO","N° CONVOCATORIA PUESTO",null,null,"DENOMINACIÓN DE LA UNIDAD ORGÁNICA"]
[1,{"$f":"#REF!","v":{"$error":"#REF!"}},{"$f":"IFERROR(BDC[PUBLICO/PRIVADO 01],\"\")","v":""},{"$f":"IFERROR(DATEDIF(BDC[FECHA DE INICIO 01],BDC[FECHA DE TERMINO 01],\"Y\"),\"\")","v":""},{"$f":"IFERROR(DATEDIF(BDC[FECHA DE INICIO 01],BDC[FECHA DE TERMINO 01],\"YM\"),\"\")","v":""},{"$f":"IFERROR(DATEDIF(BDC[FECHA DE INICIO 01],BDC[FECHA DE TERMINO 01],\"MD\"),\"\")","v":""},{"$f":"#REF!-#REF!+1","v":{"$error":"#REF!"}},null,null,null,null,null,"Analista Contable","UNIDAD DE CONTABILIDAD Y FINANZAS",null,"ET5004UCF6AP4","N° 001-2024",null,null,"DEPARTAMENTO DE COBRANZA"]
[2,{"$f":"#REF!","v":{"$error":"#REF!"}},{"$f":"IFERROR(BDC[PUBLICO/PRIVADO 02],\"\")","v":""},{"$f":"IFERROR(DATEDIF(BDC[FECHA DE INICIO 02],BDC[FECHA DE TERMINO 02],\"Y\"),\"\")","v":""},{"$f":"IFERROR(DATEDIF(BDC[FECHA DE INICIO 02],BDC[FECHA DE TERMINO 02],\"YM\"),\"\")","v":""},{"$f":"IFERROR(DATEDIF(BDC[FECHA DE INICIO 02],BDC[FECHA DE TERMINO 02],\"MD\"),\"\")","v":""},{"$f":"#REF!-#REF!+1","v":{"$error":"#REF!"}},null,null,null,null,null,"Analista de Administración","OFICINA GENERAL DE ADMINISTRACIÓN",null,"ET5004OGA6AP4","N° 001-2024",null,null,"DEPARTAMENTO DE EJECUTORIA COACTIVA"]
[3,{"$f":"#REF!","v":{"$error":"#REF!"}},{"$f":"IFERROR(BDC[PUBLICO/PRIVADO 03],\"\")","v":""},{"$f":"IFERROR(DATEDIF(BDC[FECHA DE INICIO 03],BDC[FECHA DE TERMINO 03],\"Y\"),\"\")","v":""},{"$f":"IFERROR(DATEDIF(BDC[FECHA DE INICIO 03],BDC[FECHA DE TERMINO 03],\"YM\"),\"\")","v":""},{"$f":"IFERROR(DATEDIF(BDC[FECHA DE INICIO 03],BDC[FECHA DE TERMINO 03],\"MD\"),\"\")","v":""},{"$f":"#REF!-#REF!+1","v":{"$error":"#REF!"}},null,null,null,null,null,"Analista de Administración de Personal","UNIDAD DE RECURSOS HUMANOS",null,"ET5004URH6AP4","N° 001-2024",null,null,"DEPARTAMENTO DE RECLAMOS"]
[4,{"$f":"#REF!","v":{"$error":"#REF!"}},{"$f":"IFERROR(BDC[PUBLICO/PRIVADO 04],\"\")","v":""},{"$f":"IFERROR(DATEDIF(BDC[FECHA DE INICIO 04],BDC[FECHA DE TERMINO 04],\"Y\"),\"\")","v":""},{"$f":"IFERROR(DATEDIF(BDC[FECHA DE INICIO 04],BDC[FECHA DE TERMINO 04],\"YM\"),\"\")","v":""},{"$f":"IFERROR(DATEDIF(BDC[FECHA DE INICIO 04],BDC[FECHA DE TERMINO 04],\"MD\"),\"\")","v":""},{"$f":"#REF!-#REF!+1","v":{"$error":"#REF!"}},null,null,null,null,null,"Analista de Bienestar y Desarrollo de Personal","UNIDAD DE RECURSOS HUMANOS",null,"ET5004URH6AP4","N° 001-2024",null,null,"DEPARTAMENTO DE REGISTRO Y FISCALIZACIÓN"]
[5,{"$f":"#REF!","v":{"$error":"#REF!"}},{"$f":"IFERROR(BDC[PUBLICO/PRIVADO 05],\"\")","v":""},{"$f":"IFERROR(DATEDIF(BDC[FECHA DE INICIO 05],BDC[FECHA DE TERMINO 05],\"Y\"),\"\")","v":""},{"$f":"IFERROR(DATEDIF(BDC[FECHA DE INICIO 05],BDC[FECHA DE TERMINO 05],\"YM\"),\"\")","v":""},{"$f":"IFERROR(DATEDIF(BDC[FECHA DE INICIO 05],BDC[FECHA DE TERMINO 05],\"MD\"),\"\")","v":""},{"$f":"#REF!-#REF!+1","v":{"$error":"#REF!"}},null,null,null,null,null,"Analista de Caja","UNIDAD DE TESORERIA",null,"ET5004UT6AP4","N° 001-2024",null,null,"DIVISIÓN DE RECAUDACIÓN Y CONTROL DE LA DEUDA"]
[6,{"$f":"#REF!","v":{"$error":"#REF!"}},{"$f":"IFERROR(BDC[PUBLICO/PRIVADO 06],\"\")","v":""},{"$f":"IFERROR(DATEDIF(BDC[FECHA DE INICIO 06],BDC[FECHA DE TERMINO 06],\"Y\"),\"\")","v":""},{"$f":"IFERROR(DATEDIF(BDC[FECHA DE INICIO 06],BDC[FECHA DE TERMINO 06],\"YM\"),\"\")","v":""},{"$f":"IFERROR(DATEDIF(BDC[FECHA DE INICIO 06],BDC[FECHA DE TERMINO 06],\"MD\"),\"\")","v":""},{"$f":"#REF!-#REF!+1","v":{"$error":"#REF!"}},null,null,null,null,null,"Analista de Cobranza","DEPARTAMENTO DE COBRANZA",null,"ET5005DC6AP4","N° 001-2025",null,null,"DIVISIÓN DE SERVICIOS AL ADMINISTRADO"]
[7,{"$f":"#REF!","v":{"$error":"#REF!"}},{"$f":"IFERROR(BDC[PUBLICO/PRIVADO 07],\"\")","v":""},{"$f":"IFERROR(DATEDIF(BDC[FECHA DE INICIO 07],BDC[FECHA DE TERMINO 07],\"Y\"),\"\")","v":""},{"$f":"IFERROR(DATEDIF(BDC[FECHA DE INICIO 07],BDC[FECHA DE TERMINO 07],\"YM\"),\"\")","v":""},{"$f":"IFERROR(DATEDIF(BDC[FECHA DE INICIO 07],BDC[FECHA DE TERMINO 07],\"MD\"),\"\")","v":""},{"$f":"#REF!-#REF!+1","v":{"$error":"#REF!"}},null,null,null,null,null,"Analista de Cobranza Coactiva","DEPARTAMENTO DE EJECUTORIA COACTIVA",null,"ET5005DEC6AP4","N° 001-2026",null,null,"GERENCIA DE OPERACIONES"]
[8,{"$f":"#REF!","v":{"$error":"#REF!"}},{"$f":"IFERROR(BDC[PUBLICO/PRIVADO 08],\"\")","v":""},{"$f":"IFERROR(DATEDIF(BDC[FECHA DE INICIO 08],BDC[FECHA DE TERMINO 08],\"Y\"),\"\")","v":""},{"$f":"IFERROR(DATEDIF(BDC[FECHA DE INICIO 08],BDC[FECHA DE TERMINO 08],\"YM\"),\"\")","v":""},{"$f":"IFERROR(DATEDIF(BDC[FECHA DE INICIO 08],BDC[FECHA DE TERMINO 08],\"MD\"),\"\")","v":""},{"$f":"#REF!-#REF!+1","v":{"$error":"#REF!"}},null,null,null,null,null,"Analista de Contrataciones, Adquisiciones y Almacén","UNIDAD DE ABASTECIMIENTO Y CONTROL PATRIMONIAL",null,"ET5004UACP6AP4","N° 001-2027",null,null,"GERENCIA GENERAL"]
[9,{"$f":"#REF!","v":{"$error":"#REF!"}},{"$f":"IFERROR(BDC[PUBLICO/PRIVADO 09],\"\")","v":""},{"$f":"IFERROR(DATEDIF(BDC[FECHA DE INICIO 09],BDC[FECHA DE TERMINO 09],\"Y\"),\"\")","v":""},{"$f":"IFERROR(DATEDIF(BDC[FECHA DE INICIO 09],BDC[FECHA DE TERMINO 09],\"YM\"),\"\")","v":""},{"$f":"IFERROR(DATEDIF(BDC[FECHA DE INICIO 09],BDC[FECHA DE TERMINO 09],\"MD\"),\"\")","v":""},{"$f":"#REF!-#REF!+1","v":{"$error":"#REF!"}},null,null,null,null,null,"Analista de Control Patrimonial","UNIDAD DE ABASTECIMIENTO Y CONTROL PATRIMONIAL",null,"ET5004UACP6AP4","N° 001-2028",null,null,"OFICINA DE ASESORÍA JURÍDICA"]
[10,{"$f":"#REF!","v":{"$error":"#REF!"}},{"$f":"IFERROR(BDC[PUBLICO/PRIVADO 10],\"\")","v":""},{"$f":"IFERROR(DATEDIF(BDC[FECHA DE INICIO 10],BDC[FECHA DE TERMINO 10],\"Y\"),\"\")","v":""},{"$f":"IFERROR(DATEDIF(BDC[FECHA DE INICIO 10],BDC[FECHA DE TERMINO 10],\"YM\"),\"\")","v":""},{"$f":"IFERROR(DATEDIF(BDC[FECHA DE INICIO 10],BDC[FECHA DE TERMINO 10],\"MD\"),\"\")","v":""},{"$f":"#REF!-#REF!+1","v":{"$error":"#REF!"}},null,null,null,null,null,"Analista de Determinación de la Deuda","DEPARTAMENTO DE REGISTRO Y FISCALIZACIÓN",null,"ET5005DRF6AP4","N° 001-2029",null,null,"OFICINA DE PLANEAMIENTO Y PRESUPUESTO"]
["Total",null,null,null,null,null,{"$f":"SUBTOTAL(109,tblFpp15[DIAS TOTALES])","v":{"$error":"#REF!"}},null,null,null,null,null,"Analista de Operaciones","GERENCIA DE OPERACIONES",null,"ET5005GO6AP4","N° 001-2030",null,null,"OFICINA DE TECNOLOGÍA DE LA INFORMACIÓN"]
[null,null,null,null,null,null,null,null,null,null,null,null,"Analista de Registro y Fiscalización","DEPARTAMENTO DE REGISTRO Y FISCALIZACIÓN",null,"ET5005DRF6AP4","N° 001-2031",null,null,"OFICINA GENERAL DE ADMINISTRACIÓN"]
[null,null,null,null,null,null,null,null,null,null,null,null,"Analista de Tesorería","UNIDAD DE TESORERIA",null,"ET5004UT6AP4","N° 001-2032",null,null,"ÓRGANO DE CONTROL INSTITUCIONAL"]
[null,"Selección","S AÑO","S MES","S DIAS","Columna2","DIAS OFICIAL","MES OFICIAL","AÑO OFICIAL","TOTAL POR SELECCIÓN",null,null,"Analista en Programación Logística","UNIDAD DE ABASTECIMIENTO Y CONTROL PATRIMONIAL",null,"ET5004UACP6AP4","N° 001-2033",null,null,"UNIDAD DE ABASTECIMIENTO Y CONTROL PATRIMONIAL"]
[null,"Público",{"$f":"SUMIF(tblFpp15[PUBLICO/PRIVADO],tblSto16[[#This Row],[Selección]],tblFpp15[AÑOS])","v":0},{"$f":"SUMIF(tblFpp15[PUBLICO/PRIVADO],tblSto16[[#This Row],[Selección]],tblFpp15[MESES])","v":0},{"$f":"SUMIF(tblFpp15[PUBLICO/PRIVADO],tblSto16[[#This Row],[Selección]],tblFpp15[DIAS])","v":0},{"$f":"IF(tblSto16[[#This Row],[S DIAS]]>=30,tblSto16[[#This Row],[S MES]]+1,tblSto16[[#This Row],[S MES]])","v":0},{"$f":"IF(tblSto16[[#This Row],[S DIAS]]>=30,tblSto16[[#This Row],[S DIAS]]-30,tblSto16[[#This Row],[S DIAS]])","v":0},{"$f":"IF(tblSto16[[#This Row],[Columna2]]>=12,tblSto16[[#This Row],[Columna2]]-12,tblSto16[[#This Row],[Columna2]])","v":0},{"$f":"IF(tblSto16[[#This Row],[Columna2]]>=12,tblSto16[[#This Row],[S AÑO]]+1,tblSto16[[#This Row],[S AÑO]])","v":0},{"$f":"tblSto16[[#This Row],[AÑO OFICIAL]]&\" años, \"&tblSto16[[#This Row],[MES OFICIAL]]&\" m, \"&tblSto16[[#This Row],[DIAS OFICIAL]]&\" d\"","v":"0 años, 0 m, 0 d"},null,null,"Analista en Soporte, Mantenimiento y Servicios  Electrónico, Eléctricos y Otros ","OFICINA DE TECNOLOGÍA DE LA INFORMACIÓN",null,"ET5004OTI6AP4","N° 001-2024",null,null,"UNIDAD DE CONTABILIDAD Y FINANZAS"]
[null,"Privado",{"$f":"SUMIF(tblFpp15[PUBLICO/PRIVADO],tblSto16[[#This Row],[Selección]],tblFpp15[AÑOS])","v":0},{"$f":"SUMIF(tblFpp15[PUBLICO/PRIVADO],tblSto16[[#This Row],[Selección]],tblFpp15[MESES])","v":0},{"$f":"SUMIF(tblFpp15[PUBLICO/PRIVADO],tblSto16[[#This Row],[Selección]],tblFpp15[DIAS])","v":0},{"$f":"IF(tblSto16[[#This Row],[S DIAS]]>=30,tblSto16[[#This Row],[S MES]]+1,tblSto16[[#This Row],[S MES]])","v":0},{"$f":"IF(tblSto16[[#This Row],[S DIAS]]>=30,tblSto16[[#This Row],[S DIAS]]-30,tblSto16[[#This Row],[S DIAS]])","v":0},{"$f":"IF(tblSto16[[#This Row],[Columna2]]>=12,tblSto16[[#This Row],[Columna2]]-12,tblSto16[[#This Row],[Columna2]])","v":0},{"$f":"IF(tblSto16[[#This Row],[Columna2]]>=12,tblSto16[[#This Row],[S AÑO]]+1,tblSto16[[#This Row],[S AÑO]])","v":0},{"$f":"tblSto16[[#This Row],[AÑO OFICIAL]]&\" años, \"&tblSto16[[#This Row],[MES OFICIAL]]&\" m, \"&tblSto16[[#This Row],[DIAS OFICIAL]]&\" d\"","v":"0 años, 0 m, 0 d"},null,null,"Analista Jurídico","OFICINA DE ASESORÍA JURÍDICA",null,"ET5003OAJ6AP4","N° 001-2024",null,null,"UNIDAD DE RECURSOS HUMANOS"]
[null,null,null,null,null,null,null,null,null,null,null,null,"Analista Programador","OFICINA DE TECNOLOGÍA DE LA INFORMACIÓN",null,"ET5004OTI6AP4","N° 001-2024",null,null,"UNIDAD DE TESORERIA"]
[null,null,null,null,null,null,null,null,null,null,null,null,"Analista Programador Web","OFICINA DE TECNOLOGÍA DE LA INFORMACIÓN",null,"ET5004OTI6AP4","N° 001-2024"]
[null,null,null,null,null,null,null,null,null,null,null,null,"Analista Resolutor","DEPARTAMENTO DE RECLAMOS",null,"ET5005DR5ES4","N° 001-2024"]
[null,null,null,null,null,null,null,null,null,null,null,null,"Analista Supervisor","DEPARTAMENTO DE REGISTRO Y FISCALIZACIÓN",null,"ET5005DRF6AP4","N° 001-2024"]
[null,"ITEM","AÑOST","MEST","DIAST","Columna1","DIASTE","MESESTE","AÑOTE","TOTAL GENERAL",null,null,"Analista Vehicular","GERENCIA DE OPERACIONES",null,"ET5005GO6AP4","N° 001-2024"]
[null,"Total",{"$f":"SUM(tblSto16[S AÑO])","v":0},{"$f":"SUM(tblSto16[S MES])","v":0},{"$f":"SUM(tblSto16[S DIAS])","v":0},{"$f":"_xlfn.IFS(E25>=60,D25+2,E25>=30,D25+1,E25<30,D25)","v":0},{"$f":"_xlfn.IFS(E25>=60,E25-60,E25>=30,E25-30,E25<30,E25)","v":0},{"$f":"_xlfn.IFS(F25>=36,F25-36,F25>=24,F25-24,F25>=12,F25-12,F25<12,F25)","v":0},{"$f":"_xlfn.IFS(F25>=36,C25+3,F25>=24,C25+2,F25>=12,C25+1,F25<12,C25)","v":0},{"$f":"tblTea17[[#This Row],[AÑOTE]]&\" años, \"&tblTea17[[#This Row],[MESESTE]]&\" m, \"&tblTea17[[#This Row],[DIASTE]]&\" d\"","v":"0 años, 0 m, 0 d"},null,null,"Asistente de Gerencia General","GERENCIA GENERAL",null,"ET5001GG6AP4","N° 001-2025"]
[null,null,null,null,null,null,null,null,null,null,null,null,"Auditor Operativo","ÓRGANO DE CONTROL INSTITUCIONAL",null,"ET5002OCI5ES4","N° 001-2024"]
[null,null,null,null,null,null,null,null,null,null,null,null,"Auxiliar Coactivo","DEPARTAMENTO DE EJECUTORIA COACTIVA",null,"ET5005DEC5ES4","N° 001-2024"]
[null,null,null,null,null,null,null,null,null,null,null,null,"Auxiliar de Mantenimiento y Aseo en General ","UNIDAD DE ABASTECIMIENTO Y CONTROL PATRIMONIAL",null,"ET5004UACP6AP5","N° 001-2024"]
[null,null,null,null,null,null,null,null,null,null,null,null,"Conserje","GERENCIA GENERAL",null,"ET5001GG6AP5","N° 001-2024"]
[null,null,null,null,null,null,null,null,null,null,null,null,"Defensor del Contribuyente y del Administrado","GERENCIA GENERAL",null,"ET5001GG4EJ3","N° 001-2027"]
[null,null,null,null,null,null,null,null,null,null,null,null,"Ejecutor Coactivo","DEPARTAMENTO DE EJECUTORIA COACTIVA",null,"ET5005DEC4EJ3","N° 001-2024"]
[null,null,null,null,null,null,null,null,null,null,null,null,"Especialista en Auditoría","ÓRGANO DE CONTROL INSTITUCIONAL",null,"ET5002OCI4EJ2","N° 001-2024"]
[null,null,null,null,null,null,null,null,null,null,null,null,"Gerente de Operaciones","GERENCIA DE OPERACIONES",null,"ET5005GO2EC2","N° 001-2024"]
[null,null,null,null,null,null,null,null,null,null,null,null,"Gerente General","GERENCIA GENERAL",null,"ET5001GG1FP1","N° 001-2024"]
[null,null,null,null,null,null,null,null,null,null,null,null,"Inspector","DEPARTAMENTO DE REGISTRO Y FISCALIZACIÓN",null,"ET5005DRF5ES4","N° 001-2024"]
[null,null,null,null,null,null,null,null,null,null,null,null,"Integrador Contable","UNIDAD DE CONTABILIDAD Y FINANZAS",null,"ET5004UCF6AP4","N° 001-2024"]
[null,null,null,null,null,null,null,null,null,null,null,null,"Jefe de la División de Servicios al Administrado","DIVISIÓN DE SERVICIOS AL ADMINISTRADO",null,"ET5005DSA2EC3","N° 001-2024"]
[null,null,null,null,null,null,null,null,null,null,null,null,"Jefe de la División Recaudación y Control de la Deuda","DIVISIÓN DE RECAUDACIÓN Y CONTROL DE LA DEUDA",null,"ET5005DRCD2EC3","N° 001-2024"]
[null,null,null,null,null,null,null,null,null,null,null,null,"Jefe de la Oficina de Asesoría Jurídica","OFICINA DE ASESORÍA JURÍDICA",null,"ET5003OAJ4EJ2","N° 001-2024"]
[null,null,null,null,null,null,null,null,null,null,null,null,"Jefe de la Oficina de Planeamiento y Presupuesto","OFICINA DE PLANEAMIENTO Y PRESUPUESTO",null,"ET5003OPP4EJ2","N° 001-2024"]
[null,null,null,null,null,null,null,null,null,null,null,null,"Jefe de la Oficina de Tecnología de la Información","OFICINA DE TECNOLOGÍA DE LA INFORMACIÓN",null,"ET5004OTI4EJ3","N° 001-2024"]
[null,null,null,null,null,null,null,null,null,null,null,null,"Jefe de la Oficina General de Administración","OFICINA GENERAL DE ADMINISTRACIÓN",null,"ET5004OGA2EC2","N° 001-2024"]
[null,null,null,null,null,null,null,null,null,null,null,null,"Jefe de Unidad de Abastecimiento y Control Patrimonial","UNIDAD DE ABASTECIMIENTO Y CONTROL PATRIMONIAL",null,"ET5004UACP4EJ3","N° 001-2024"]
[null,null,null,null,null,null,null,null,null,null,null,null,"Jefe de Unidad de Contabilidad y Finanzas","UNIDAD DE CONTABILIDAD Y FINANZAS",null,"ET5004UCF4EJ3","N° 001-2024"]
[null,null,null,null,null,null,null,null,null,null,null,null,"Jefe de Unidad de Recursos Humanos","UNIDAD DE RECURSOS HUMANOS",null,"ET5004URH4EJ3","N° 001-2024"]
[null,null,null,null,null,null,null,null,null,null,null,null,"Jefe de Unidad de Tesorería","UNIDAD DE TESORERIA",null,"ET5004UT4EJ3","N° 001-2025"]
[null,null,null,null,null,null,null,null,null,null,null,null,"Jefe del Área de Arquitectura, Producción de Software y Gestión de Proyectos","OFICINA DE TECNOLOGÍA DE LA INFORMACIÓN",null,"ET5004OTI4EJ4","N° 001-2026"]
[null,null,null,null,null,null,null,null,null,null,null,null,"Jefe del Área de Metodología y Documentación","OFICINA DE TECNOLOGÍA DE LA INFORMACIÓN",null,"ET5004OTI4EJ4","N° 001-2027"]
[null,null,null,null,null,null,null,null,null,null,null,null,"Jefe del Área de Redes, Comunicaciones y Nuevas Tecnologías","OFICINA DE TECNOLOGÍA DE LA INFORMACIÓN",null,"ET5004OTI4EJ4","N° 001-2028"]
[null,null,null,null,null,null,null,null,null,null,null,null,"Jefe del Departamento de Cobranza","DEPARTAMENTO DE COBRANZA",null,"ET5005DC4EJ3","N° 001-2029"]
[null,null,null,null,null,null,null,null,null,null,null,null,"Jefe del Departamento de Registro y  Fiscalización","DEPARTAMENTO DE REGISTRO Y FISCALIZACIÓN",null,"ET5005DRF4EJ3","N° 001-2024"]
[null,null,null,null,null,null,null,null,null,null,null,null,"Jefe del Dpto. de Reclamos","DEPARTAMENTO DE RECLAMOS",null,"ET5005DR4EJ3","N° 001-2024"]
[null,null,null,null,null,null,null,null,null,null,null,null,"Profesional de Calidad de Datos","DEPARTAMENTO DE REGISTRO Y FISCALIZACIÓN",null,"ET5005DRF5ES4","N° 001-2024"]
[null,null,null,null,null,null,null,null,null,null,null,null,"Profesional de Imagen Institucional","GERENCIA GENERAL",null,"ET5001GG5ES4","N° 001-2026"]
[null,null,null,null,null,null,null,null,null,null,null,null,"Profesional en Proyectos, Organización y Métodos","OFICINA DE PLANEAMIENTO Y PRESUPUESTO",null,"ET5003OPP5ES4","N° 001-2024"]
[null,null,null,null,null,null,null,null,null,null,null,null,"Profesional en Seguridad de la Información","OFICINA DE TECNOLOGÍA DE LA INFORMACIÓN",null,"ET5004OTI5ES4","N° 001-2024"]
[null,null,null,null,null,null,null,null,null,null,null,null,"Profesional Jurídico","GERENCIA DE OPERACIONES",null,"ET5005GO4EJ3","N° 001-2024"]
[null,null,null,null,null,null,null,null,null,null,null,null,"Registrador","DEPARTAMENTO DE REGISTRO Y FISCALIZACIÓN",null,"ET5005DRF5ES4","N° 001-2024"]
[null,null,null,null,null,null,null,null,null,null,null,null,"Técnico Cajero","UNIDAD DE TESORERIA",null,"ET5004UT6AP5","N° 001-2024"]
[null,null,null,null,null,null,null,null,null,null,null,null,"Técnico de Archivo y Control documentario","OFICINA GENERAL DE ADMINISTRACIÓN",null,"ET5004OGA6AP5","N° 001-2024"]
[null,null,null,null,null,null,null,null,null,null,null,null,"Técnico de Atención y Orientación","DEPARTAMENTO DE REGISTRO Y FISCALIZACIÓN",null,"ET5005DRF6AP5","N° 001-2024"]
[null,null,null,null,null,null,null,null,null,null,null,null,"Técnico de Mesa de Partes","DIVISIÓN DE SERVICIOS AL ADMINISTRADO",null,"ET5005DSA6AP5","N° 001-2024"]
[null,null,null,null,null,null,null,null,null,null,null,null,"Técnico de Reclamos","DEPARTAMENTO DE RECLAMOS",null,"ET5005DR6AP5","N° 001-2024"]
[null,null,null,null,null,null,null,null,null,null,null,null,"Técnico de Registro y Fiscalización","DEPARTAMENTO DE REGISTRO Y FISCALIZACIÓN",null,"ET5005DRF6AP5","N° 001-2024"]
[null,null,null,null,null,null,null,null,null,null,null,null,"Técnico en Seguridad y Vigilancia","UNIDAD DE RECURSOS HUMANOS",null,"ET5004URH6AP5","N° 001-2024"]